bitfinex/quotes_SOLUSD_20250706
["timestamp","ask_amount","ask_price","bid_price","bid_amount"]
[1751806570925,7.50039626,149.01,148.97,6.71276095]
[1751806571126,8.32729686,149.03,148.97,6.71276095]
[1751806571328,7.49974511,149.02,148.97,6.71276095]
[1751806571532,7.49974511,149.01,148.97,6.71276095]
[1751806571731,18.64964886,149.02,148.97,6.71276095]
[1751806572031,7.50029137,149.01,148.97,6.71276095]
[1751806572230,7.50010575,149.01,148.97,6.71276095]
[1751806574333,26.14975461,149.02,148.97,6.71276095]
[1751806574649,7.50010575,149.01,148.97,6.71276095]
[1751806575246,7.50330752,149.01,148.97,6.71276095]
[1751806575539,7.50330752,149.02,148.97,6.71276095]
[1751806575748,7.50330752,149.01,148.97,6.71276095]
[1751806575933,7.50330752,149.02,148.97,6.71276095]
[1751806576244,7.50330752,149.02,148.97,23.49466334]
[1751806576741,9.12050752,149.03,148.97,23.49466334]
[1751806576943,7.50330752,149.03,148.97,23.49466334]
[1751806577251,7.50466722,149.04,148.97,23.49466334]
[1751806577435,7.50466722,149.06,148.97,23.49466334]
[1751806577636,7.50466722,149.05,148.97,23.49466334]
[1751806577836,7.50466722,149.04,148.97,23.49466334]
[1751806578127,7.50466722,149.05,148.97,23.49466334]
[1751806578333,7.50466722,149.04,148.97,23.49466334]
[1751806578536,7.50466722,149.05,148.97,23.49466334]
[1751806578738,7.50466722,149.04,148.97,23.49466334]
[1751806578942,7.50466722,149.05,148.97,23.49466334]
[1751806579152,7.50466722,149.04,148.97,23.49466334]
[1751806579354,7.50466722,149.05,148.97,23.49466334]
[1751806579548,7.50466722,149.04,148.97,23.49466334]
[1751806579852,7.50466722,149.05,149.0,26.0]
[1751806580045,7.50466722,149.04,149.0,26.0]
[1751806580249,7.50466722,149.06,149.0,26.0]
[1751806580551,7.50466722,149.05,149.0,26.0]
[1751806580754,7.50466722,149.04,149.01,6.71095899]
[1751806580954,7.50466722,149.06,149.01,6.71095899]
[1751806581135,7.50466722,149.05,149.01,6.71095899]
[1751806581329,7.50466722,149.04,149.01,6.71095899]
[1751806581654,7.50466722,149.06,149.01,6.71095899]
[1751806581833,7.50466722,149.05,149.01,6.71095899]
[1751806582034,20.19114886,149.07,149.01,6.71095899]
[1751806582256,7.52397588,149.06,149.01,6.71095899]
[1751806582452,7.52397588,149.05,149.01,6.71095899]
[1751806582656,7.52397588,149.06,149.01,6.71095899]
[1751806582851,7.52397588,149.05,149.01,6.71095899]
[1751806583054,7.52397588,149.06,149.01,6.71095899]
[1751806584061,7.52397588,149.05,149.0,6.71126764]
[1751806584443,7.52397588,149.04,149.0,6.71126764]
[1751806584760,7.52397588,149.05,149.0,6.71126764]
[1751806584964,7.52397588,149.04,149.0,6.71126764]
[1751806585147,7.52397588,149.05,149.0,6.71126764]
[1751806585461,7.52397588,149.04,149.01,26.0]
[1751806585634,7.52397588,149.05,149.01,26.0]
[1751806585838,7.52397588,149.04,149.01,26.0]
[1751806586042,7.52397588,149.05,149.01,26.0]
[1751806586356,15.5507344,149.08,149.03,26.0]
[1751806586357,18.64964886,149.08,149.03,26.0]
[1751806586654,7.52230382,149.07,149.0,49.48979112]
[1751806586852,7.52230382,149.06,149.0,32.71126764]
[1751806587059,7.52230382,149.05,149.0,32.71126764]
[1751806587265,7.52230382,149.04,149.0,32.71126764]
[1751806587446,14.2309041,149.07,149.0,32.71126764]
[1751806587649,7.52230382,149.06,149.0,32.71126764]
[1751806587854,0.06,149.04,149.0,32.71126764]
[1751806588056,7.58230382,149.04,149.0,32.71126764]
[1751806588242,0.06,149.04,149.0,32.71126764]
[1751806588643,7.58230382,149.04,149.0,32.71126764]
[1751806588846,0.06,149.04,149.0,32.71126764]
[1751806589444,7.58230382,149.04,149.0,32.71126764]
[1751806589642,0.06,149.04,149.0,32.71126764]
[1751806591161,0.06,149.04,149.0,49.48979112]
[1751806605723,0.06,149.04,149.03,26.0]
[1751806607835,0.06,149.04,149.03,32.71005837]
[1751806610341,7.5918344,149.04,149.03,32.71005837]
[1751806613734,0.06,149.04,149.03,32.71005837]
[1751806620244,1e-08,149.04,149.03,32.71005837]
[1751806631934,1e-08,149.04,149.03,198.65970723]
[1751806632140,1e-08,149.04,149.03,209.96975423]
[1751806632664,1e-08,149.04,149.03,200.29490723]
[1751806633250,1e-08,149.04,149.03,234.41490723]
[1751806633641,1e-08,149.04,149.03,244.08975423]
[1751806633958,1e-08,149.04,149.03,96.78975423]
[1751806637350,1e-08,149.04,149.03,251.33040709]
[1751806639964,1e-08,149.04,149.03,6.71005837]
[1751806640354,1e-08,149.04,149.03,32.71005837]
[1751806646948,1e-08,149.04,149.03,6.71005837]
[1751806647150,7.52168804,149.04,149.03,6.71005837]
[1751806648077,7.52168804,149.04,149.02,6.71050865]
[1751806648875,7.52223116,149.04,149.02,6.71050865]
[1751806649569,1e-08,149.04,149.02,6.71050865]
[1751806653061,7.52058346,149.04,149.02,6.71050865]
[1751806653768,1e-08,149.04,149.02,6.71050865]
[1751806661296,18.64964887,149.04,149.01,6.71079861]
[1751806661477,1e-08,149.04,149.01,6.71079861]
[1751806661672,1e-08,149.04,149.01,23.4881961]
[1751806663494,1e-08,149.04,149.03,26.0]
[1751806664304,1e-08,149.04,149.03,32.71005837]
[1751806670801,1e-08,149.04,149.03,205.90036009]
[1751806670986,1e-08,149.04,149.03,214.50377792]
[1751806682025,1e-08,149.04,149.03,214.53377792]
[1751806682916,0.38789195,149.1,149.03,264.85921574]
[1751806683123,0.38789195,149.1,149.07,26.0]
[1751806685129,0.38789195,149.1,149.08,6.70780788]
[1751806694944,0.38789195,149.1,149.04,23.48333317]
[1751806695144,9.50848491,149.1,149.04,23.48333317]
[1751806695453,2.00699195,149.1,149.05,26.0]
[1751806695620,2.00699195,149.1,149.06,6.7087079]
[1751806696445,2.00699195,149.1,149.06,23.48047765]
[1751806697347,2.00699195,149.1,149.06,6.7087079]
[1751806699822,2.00699195,149.1,149.06,23.48047765]
[1751806702447,9.50896811,149.1,149.06,23.48047765]
[1751806702754,2.00699195,149.1,149.06,23.48047765]
[1751806703455,9.52166975,149.1,149.06,23.48047765]
[1751806703656,2.00699195,149.1,149.06,23.48047765]
[1751806704141,9.5231485,149.1,149.06,23.48047765]
[1751806704343,0.38789195,149.1,149.09,26.0]
[1751806706343,0.38789195,149.1,149.09,32.70735797]
[1751806718549,7.92328882,149.1,149.09,6.70735797]
[1751806719876,7.92328882,149.1,149.03,13.21985625]
[1751806720171,7.53539687,149.09,149.04,6.70960815]
[1751806720369,7.53539687,149.08,149.07,32.70825786]
[1751806729190,7.53539687,149.08,149.07,6.70825786]
[1751806731177,7.53539687,149.08,149.06,6.7087079]
[1751806731384,2.08589195,149.1,149.06,6.7087079]
[1751806731568,7.52847145,149.09,149.06,6.7087079]
[1751806731866,7.52847145,149.08,149.06,6.7087079]
[1751806732068,2.08589195,149.1,149.06,6.7087079]
[1751806732376,7.52847145,149.09,149.06,6.7087079]
[1751806732578,7.52847145,149.08,149.06,6.7087079]
[1751806732769,2.08589195,149.1,149.06,6.7087079]
[1751806732970,7.52790015,149.09,149.06,6.7087079]
[1751806733172,7.52790015,149.08,149.06,6.7087079]
[1751806733371,2.08589195,149.1,149.06,6.7087079]
[1751806733571,7.5274348,149.09,149.06,6.7087079]
[1751806733780,7.5274348,149.08,149.06,6.7087079]
[1751806734087,2.08589195,149.1,149.06,6.7087079]
[1751806734380,7.5274348,149.09,149.06,6.7087079]
[1751806734583,7.5274348,149.08,149.06,6.7087079]
[1751806734887,2.08589195,149.1,149.06,6.7087079]
[1751806735182,7.52724801,149.09,149.06,6.7087079]
[1751806735382,7.52724801,149.08,149.06,6.7087079]
[1751806735585,2.08589195,149.1,149.06,6.7087079]
[1751806735765,7.52711478,149.09,149.06,6.7087079]
[1751806735966,7.52711478,149.08,149.06,6.7087079]
[1751806736176,2.08589195,149.1,149.06,6.7087079]
[1751806736373,7.527183,149.09,149.06,6.7087079]
[1751806736575,7.527183,149.08,149.06,6.7087079]
[1751806736763,2.08589195,149.1,149.06,6.7087079]
[1751806736964,7.527183,149.09,149.06,6.7087079]
[1751806737183,7.527183,149.08,149.06,6.7087079]
[1751806737392,2.08589195,149.1,149.06,6.7087079]
[1751806737570,7.5272999,149.09,149.06,6.7087079]
[1751806737888,7.5272999,149.08,149.06,6.7087079]
[1751806738075,7.5272999,149.07,149.06,6.7087079]
[1751806738390,7.5272999,149.09,149.06,6.7087079]
[1751806738684,7.5272999,149.08,149.06,6.7087079]
[1751806738890,7.5272999,149.07,149.06,6.7087079]
[1751806739062,7.5272999,149.09,149.06,6.7087079]
[1751806739264,7.5272999,149.08,149.06,6.7087079]
[1751806739475,7.5272999,149.07,149.06,6.7087079]
[1751806739676,7.5272999,149.09,149.06,6.7087079]
[1751806739882,7.5272999,149.08,149.06,6.7087079]
[1751806740082,7.5272999,149.07,149.06,6.7087079]
[1751806740278,7.5272999,149.09,149.06,6.7087079]
[1751806740491,7.5272999,149.08,149.06,6.7087079]
[1751806740681,7.5272999,149.07,149.06,6.7087079]
[1751806740892,7.5272999,149.09,149.06,6.7087079]
[1751806741090,7.5272999,149.08,149.06,6.7087079]
[1751806741271,7.5272999,149.07,149.06,6.7087079]
[1751806741468,7.5266797,149.09,149.06,6.7087079]
[1751806741669,7.5266797,149.08,149.06,6.7087079]
[1751806741900,7.5266797,149.07,149.06,6.7087079]
[1751806742094,7.5266797,149.09,149.06,6.7087079]
[1751806742392,7.5266797,149.08,149.06,6.7087079]
[1751806742594,7.5266797,149.07,149.06,6.7087079]
[1751806744294,7.5266797,149.09,149.06,6.7087079]
[1751806744499,7.5266797,149.08,149.06,6.7087079]
[1751806744793,7.5266797,149.07,149.06,6.7087079]
[1751806744997,7.5266797,149.09,149.06,6.7087079]
[1751806745198,7.5266797,149.08,149.06,6.7087079]
[1751806745391,7.5266797,149.07,149.06,6.7087079]
[1751806745591,7.5266797,149.09,149.06,6.7087079]
[1751806745793,7.5266797,149.08,149.06,6.7087079]
[1751806745993,7.5266797,149.07,149.06,6.7087079]
[1751806746193,7.5266797,149.09,149.06,6.7087079]
[1751806746397,2.08589195,149.1,149.06,6.7087079]
[1751806746398,7.5266797,149.08,149.06,6.7087079]
[1751806746692,2.08589195,149.1,149.06,6.7087079]
[1751806746901,7.52404888,149.09,149.06,6.7087079]
[1751806747197,7.52404888,149.08,149.06,6.7087079]
[1751806747395,2.08589195,149.1,149.06,6.7087079]
[1751806747592,7.52367954,149.09,149.06,6.7087079]
[1751806747794,7.52367954,149.08,149.06,6.7087079]
[1751806747998,2.08589195,149.1,149.06,6.7087079]
[1751806748190,7.52367954,149.09,149.06,6.7087079]
[1751806748391,7.52367954,149.08,149.05,32.70906618]
[1751806748703,7.52367954,149.07,149.05,32.70906618]
[1751806749003,7.52367954,149.06,149.05,32.70906618]
[1751806749296,7.52367954,149.09,149.05,32.70906618]
[1751806749496,7.52367954,149.08,149.05,32.70906618]
[1751806749695,7.52367954,149.07,149.05,32.70906618]
[1751806749889,7.52367954,149.06,149.05,32.70906618]
[1751806750097,7.52367954,149.09,149.05,32.70906618]
[1751806750285,7.52367954,149.08,149.05,32.70906618]
[1751806750493,7.52367954,149.07,149.05,32.70906618]
[1751806750692,7.52367954,149.06,149.05,32.70906618]
[1751806750909,7.52367954,149.09,149.05,32.70906618]
[1751806751089,7.52367954,149.08,149.05,32.70906618]
[1751806751308,7.52367954,149.07,149.05,32.70906618]
[1751806751489,7.52367954,149.09,149.05,32.70906618]
[1751806751693,7.52367954,149.08,149.05,32.70906618]
[1751806751900,7.52367954,149.07,149.05,32.70906618]
[1751806752088,30.14389044,149.1,149.05,32.70906618]
[1751806752089,7.52367954,149.09,149.05,32.70906618]
[1751806752295,7.52367954,149.08,149.05,32.70906618]
[1751806752495,7.52367954,149.07,149.05,32.70906618]
[1751806752694,7.52367954,149.06,149.05,32.70906618]
[1751806752895,7.52367954,149.08,149.05,32.70906618]
[1751806753201,7.52367954,149.07,149.05,32.70906618]
[1751806753510,7.52367954,149.06,149.05,32.70906618]
[1751806753700,7.52367954,149.08,149.05,32.70906618]
[1751806753903,7.52367954,149.07,149.05,32.70906618]
[1751806754097,7.52367954,149.06,149.05,32.70906618]
[1751806754293,7.52367954,149.08,149.05,32.70906618]
[1751806754495,7.52367954,149.07,149.05,32.70906618]
[1751806754699,7.52367954,149.08,149.05,32.70906618]
[1751806755023,7.52367954,149.07,149.05,32.70906618]
[1751806755192,7.52367954,149.08,149.05,32.70906618]
[1751806755392,0.06,149.09,149.05,32.70906618]
[1751806755393,7.52367954,149.07,149.05,32.70906618]
[1751806755595,18.70964886,149.09,149.05,32.70906618]
[1751806755794,7.52322993,149.08,149.05,32.70906618]
[1751806755995,7.52322993,149.07,149.05,32.70906618]
[1751806756196,7.52322993,149.06,149.05,32.70906618]
[1751806756395,7.52322993,149.08,149.05,32.70906618]
[1751806756697,7.52322993,149.07,149.05,32.70906618]
[1751806756901,7.52322993,149.06,149.05,32.70906618]
[1751806757194,7.52322993,149.08,149.05,32.70906618]
[1751806757394,7.52322993,149.07,149.05,32.70906618]
[1751806757611,7.52322993,149.06,149.05,32.70906618]
[1751806757787,7.52322993,149.08,149.05,32.70906618]
[1751806757993,7.52322993,149.07,149.05,32.70906618]
[1751806758193,7.52322993,149.06,149.05,32.70906618]
[1751806758491,7.52322993,149.08,149.05,32.70906618]
[1751806758688,7.52322993,149.07,149.05,32.70906618]
[1751806758909,7.52322993,149.06,149.05,32.70906618]
[1751806759108,7.52322993,149.08,149.05,32.70906618]
[1751806759311,7.52322993,149.07,149.05,32.70906618]
[1751806759505,7.52322993,149.06,149.05,32.70906618]
[1751806761198,7.52322993,149.06,149.03,42.80507846]
[1751806761402,7.52322993,149.05,149.03,42.80507846]
[1751806761604,18.64964886,149.07,149.03,0.03]
[1751806761804,1.621,149.04,149.03,0.03]
[1751806761990,9.15271224,149.04,149.03,0.03]
[1751806762317,117.1023611,149.04,149.03,0.03]
[1751806762693,27.8023611,149.04,149.03,0.03]
[1751806763416,34.51196925,149.04,149.03,0.03]
[1751806765001,43.92031888,149.04,149.03,0.03]
[1751806765202,18.64964886,149.03,149.0,2500.03]
[1751806765408,18.64964886,149.01,149.0,2500.03]
[1751806765615,26.1813611,149.01,149.0,2500.03]
[1751806766711,7.53171224,149.01,149.0,2506.74140939]
[1751806766920,7.53171224,149.01,149.0,2500.03]
[1751806768502,7.53171224,149.01,149.0,2506.74140939]
[1751806769122,7.53171224,149.03,149.0,2506.74140939]
[1751806769622,7.53171224,149.04,149.0,2549.51993287]
[1751806769836,105.80439453,149.1,149.0,2549.51993287]
[1751806770129,124.86815847,149.08,149.0,2532.74140939]
[1751806770431,7.50933376,149.07,149.0,2549.51993287]
[1751806770631,18.64964886,149.05,149.0,2549.51993287]
[1751806771126,18.64964886,149.07,149.0,2549.51993287]
[1751806771311,7.50988158,149.06,149.0,2549.51993287]
[1751806771706,18.64964886,149.05,149.0,2549.51993287]
[1751806773137,7.510211,149.04,149.0,2549.51993287]
[1751806773314,26.15985986,149.07,149.0,2549.51993287]
[1751806773627,7.510211,149.06,149.0,2549.51993287]
[1751806773832,7.510211,149.05,149.0,2549.51993287]
[1751806774126,7.510211,149.06,149.0,2549.51993287]
[1751806774300,7.510211,149.05,149.0,2549.51993287]
[1751806774504,7.510211,149.06,149.0,2549.51993287]
[1751806774728,7.510211,149.05,149.0,2549.51993287]
[1751806774929,7.510211,149.06,149.0,2549.51993287]
[1751806775133,7.510211,149.05,149.0,2549.51993287]
[1751806775426,7.510211,149.06,149.0,2549.51993287]
[1751806775628,7.510211,149.05,149.0,2549.51993287]
[1751806775836,7.510211,149.06,149.0,2549.51993287]
[1751806776130,7.510211,149.05,149.0,2549.51993287]
[1751806776330,18.64964886,149.07,149.0,2549.51993287]
[1751806776331,7.510211,149.06,149.0,2549.51993287]
[1751806780433,7.510211,149.07,149.01,6.1315]
[1751806780627,7.510211,149.06,149.01,6.1315]
[1751806780823,7.510211,149.07,149.01,6.1315]
[1751806781027,7.510211,149.06,149.01,6.1315]
[1751806781215,7.510211,149.05,149.01,6.1315]
[1751806781410,7.510211,149.07,149.01,6.1315]
[1751806781732,7.510211,149.06,149.01,6.1315]
[1751806781930,7.510211,149.08,149.01,6.1315]
[1751806782125,7.510211,149.07,149.02,23.48678029]
[1751806782324,7.510211,149.06,149.02,23.48678029]
[1751806782635,7.510211,149.08,149.02,23.48678029]
[1751806782845,7.510211,149.07,149.02,23.48678029]
[1751806783024,7.510211,149.06,149.04,6.70960815]
[1751806783329,7.510211,149.05,149.04,6.70960815]
[1751806783542,7.510211,149.07,149.04,23.48362854]
[1751806783834,7.510211,149.06,149.04,23.48362854]
[1751806784035,7.510211,149.08,149.04,23.48362854]
[1751806784236,7.510211,149.07,149.04,23.48362854]
[1751806784417,7.510211,149.06,149.04,23.48362854]
[1751806784624,7.510211,149.08,149.04,23.48362854]
[1751806784833,7.510211,149.07,149.04,23.48362854]
[1751806785033,7.510211,149.08,149.04,23.48362854]
[1751806785237,7.510211,149.07,149.04,23.48362854]
[1751806785437,7.510211,149.08,149.04,23.48362854]
[1751806785635,7.510211,149.07,149.04,23.48362854]
[1751806785836,7.510211,149.08,149.04,23.48362854]
[1751806786037,7.510211,149.07,149.04,23.48362854]
[1751806786248,7.510211,149.08,149.04,23.48362854]
[1751806786556,7.570211,149.09,149.04,23.48362854]
[1751806787650,7.570211,149.09,149.04,25.14672854]
[1751806788146,7.510211,149.08,149.04,25.14672854]
[1751806788354,7.510211,149.07,149.04,25.14672854]
[1751806788529,7.510211,149.08,149.04,25.14672854]
[1751806788844,7.510211,149.07,149.04,25.14672854]
[1751806789048,7.510211,149.08,149.04,25.14672854]
[1751806789350,7.570211,149.09,149.06,26.0]
[1751806789555,0.06,149.09,149.06,26.0]
[1751806790024,0.06,149.09,149.07,6.70825786]
[1751806791030,0.06,149.09,149.06,23.48029622]
[1751806792135,7.51206061,149.08,149.06,16.77158832]
[1751806792536,7.57206061,149.09,149.06,16.77158832]
[1751806793264,0.06,149.09,149.06,42.77158832]
[1751806794135,0.06,149.09,149.06,49.48029622]
[1751806794570,7.57128653,149.09,149.06,49.48029622]
[1751806795562,0.06,149.09,149.06,49.48029622]
[1751806796257,0.06,149.09,149.08,32.70780788]
[1751806796460,0.38789195,149.1,149.08,32.70780788]
[1751806796668,4.98257923,149.14,149.09,1.5973]
[1751806796965,4.98257923,149.14,149.12,26.0]
[1751806797367,4.98257923,149.14,149.12,32.6213]
[1751806798365,4.98257923,149.14,149.13,6.7055589]
[1751806800561,4.98257923,149.14,149.13,154.0055589]
[1751806804156,4.98257923,149.14,149.13,6.7055589]
[1751806804469,4.98257923,149.14,149.09,1.5973]
[1751806804956,4.98257923,149.14,149.1,26.0]
[1751806805158,4.98257923,149.14,149.1,6.70649799]
[1751806805559,4.98257923,149.14,149.1,32.70649799]
[1751806807156,18.64964886,149.13,149.06,6.7087079]
[1751806807673,18.64964886,149.13,149.06,32.7087079]
[1751806808050,4.98257923,149.14,149.06,23.48047765]
[1751806808479,4.98257923,149.14,149.07,26.0]
[1751806808684,4.98257923,149.14,149.08,26.0]
[1751806809258,4.98257923,149.14,149.09,6.70735797]
[1751806811587,11.68784668,149.14,149.08,32.70765015]
[1751806811991,4.98257923,149.14,149.08,32.70765015]
[1751806812987,11.68783225,149.14,149.08,32.70765015]
[1751806813755,1.6067,149.12,149.04,7.06]
[1751806813956,18.64964886,149.11,149.04,7.06]
[1751806814379,18.64964886,149.11,149.04,33.06]
[1751806815069,18.64964886,149.11,149.04,39.76947571]
[1751806816061,25.35630543,149.11,149.04,39.76947571]
[1751806821390,18.64964886,149.09,149.04,39.76947571]
[1751806821569,18.64964886,149.09,149.04,26.0]
[1751806822883,13.55226618,149.08,149.03,0.03]
[1751806824400,7.49226618,149.08,149.03,0.03]
[1751806824582,18.64964886,149.09,149.04,26.0]
[1751806825401,18.64964886,149.09,149.05,6.709158]
[1751806825591,7.08,149.1,149.05,6.709158]
[1751806825782,7.49400029,149.1,149.05,6.709158]
[1751806826399,7.49521936,149.1,149.05,6.709158]
[1751806826595,18.64964886,149.11,149.05,6.709158]
[1751806826807,7.49521456,149.1,149.05,6.709158]
[1751806832319,18.64964886,149.09,149.05,6.709158]
[1751806832525,7.50180527,149.08,149.04,6.70945008]
[1751806834410,6.70662267,149.11,149.04,6.70945008]
[1751806834598,18.64964886,149.09,149.04,6.70945008]
[1751806835800,103.67284011,149.12,149.04,6.70945008]
[1751806835999,26.15028577,149.11,149.04,6.70945008]
[1751806836212,7.50063691,149.1,149.04,6.70945008]
[1751806839121,7.50063691,149.1,149.04,23.48347047]
[1751806847249,7.50063691,149.09,149.04,23.48347047]
[1751806847423,7.50063691,149.1,149.04,23.48347047]
[1751806847628,7.50063691,149.09,149.04,23.48347047]
[1751806847826,7.50063691,149.1,149.04,23.48347047]
[1751806848566,7.50063691,149.09,149.04,23.48347047]
[1751806848732,7.50063691,149.1,149.04,23.48347047]
[1751806848930,7.50063691,149.09,149.04,23.48347047]
[1751806849246,1.6667,149.12,149.07,26.0]
[1751806849447,7.5199916,149.11,149.07,26.0]
[1751806850142,0.06,149.12,149.07,26.0]
[1751806850540,7.52072559,149.11,149.08,6.70780788]
[1751806851422,0.06,149.12,149.08,6.70780788]
[1751806851634,7.52246861,149.11,149.08,6.70780788]
[1751806851835,0.06,149.12,149.08,6.70780788]
[1751806852129,7.52246861,149.11,149.08,6.70780788]
[1751806852343,0.06,149.12,149.08,6.70780788]
[1751806852652,7.52249954,149.11,149.08,6.70780788]
[1751806852853,0.06,149.12,149.08,6.70780788]
[1751806853057,7.52249954,149.11,149.08,6.70780788]
[1751806853360,0.06,149.12,149.08,6.70780788]
[1751806853659,7.52301398,149.11,149.08,6.70780788]
[1751806854357,0.06,149.12,149.08,6.70780788]
[1751806854547,0.06,149.12,149.03,147.33]
[1751806854548,7.52501233,149.11,149.03,147.33]
[1751806854733,7.52501233,149.1,149.03,0.03]
[1751806854938,7.52501233,149.09,149.03,0.03]
[1751806855140,7.52501233,149.08,149.05,26.0]
[1751806855340,18.64964886,149.11,149.05,26.0]
[1751806855642,7.52783834,149.1,149.05,26.0]
[1751806855846,7.52783834,149.09,149.06,6.7087079]
[1751806856076,7.52783834,149.08,149.06,6.7087079]
[1751806856353,7.52783834,149.07,149.06,6.7087079]
[1751806857343,7.52783834,149.07,149.05,6.70904599]
[1751806857647,7.53077424,149.06,149.05,6.70904599]
[1751806859469,7.53077424,149.08,149.05,6.70904599]
[1751806859766,7.53077424,149.07,149.05,6.70904599]
[1751806860004,1.5946,149.09,149.05,6.70904599]
[1751806860188,7.53088539,149.08,149.05,6.70904599]
[1751806860512,7.53088539,149.07,149.05,6.70904599]
[1751806860681,9.40090699,149.11,149.05,23.48194099]
[1751806860887,7.53038434,149.1,149.05,23.48194099]
[1751806861085,7.53038434,149.09,149.05,23.48194099]
[1751806861294,89.36,149.12,149.05,23.48194099]
[1751806861490,7.52972767,149.11,149.05,23.48194099]
[1751806861705,7.52972767,149.1,149.05,23.48194099]
[1751806861996,7.52972767,149.11,149.05,23.48194099]
[1751806862205,0.06,149.12,149.05,23.48194099]
[1751806862425,7.52772574,149.11,149.05,23.48194099]
[1751806862584,0.06,149.12,149.05,23.48194099]
[1751806862784,7.52772574,149.11,149.05,23.48194099]
[1751806863019,0.06,149.12,149.05,23.48194099]
[1751806863290,7.52693065,149.11,149.05,23.48194099]
[1751806863603,0.06,149.12,149.05,23.48194099]
[1751806863888,7.52664823,149.11,149.05,23.48194099]
[1751806864086,0.06,149.12,149.08,26.0]
[1751806864283,7.52580509,149.11,149.08,26.0]
[1751806865089,0.06,149.12,149.08,26.0]
[1751806865295,7.52508553,149.11,149.08,26.0]
[1751806865494,0.06,149.12,149.08,26.0]
[1751806865495,7.52508294,149.1,149.08,26.0]
[1751806865696,7.52508294,149.11,149.09,6.70735797]
[1751806865897,7.52508294,149.1,149.09,6.70735797]
[1751806866213,7.52508294,149.11,149.09,6.70735797]
[1751806866401,7.52508294,149.1,149.09,6.70735797]
[1751806866607,7.52508294,149.11,149.09,6.70735797]
[1751806866901,7.52508294,149.1,149.07,6.70825786]
[1751806867103,7.52508294,149.09,149.07,6.70825786]
[1751806867317,7.52508294,149.08,149.05,6.709158]
[1751806867510,7.52508294,149.07,149.05,6.709158]
[1751806867700,7.52508294,149.06,149.05,6.709158]
[1751806867902,18.64964886,149.08,149.05,0.03]
[1751806868095,7.52508294,149.07,149.05,0.03]
[1751806868296,7.52508294,149.06,149.05,0.03]
[1751806870004,26.1747318,149.06,149.05,0.03]
[1751806873310,34.5128397,149.06,149.05,0.03]
[1751806873499,43.91374669,149.06,149.05,0.03]
[1751806874299,18.64964886,149.05,149.03,0.03]
[1751806874500,26.1747318,149.04,149.03,0.03]
[1751806876127,32.88433995,149.04,149.03,0.03]
[1751806877218,42.27084279,149.04,149.03,0.03]
[1751806878726,32.88433995,149.04,149.03,0.03]
[1751806879022,32.88433995,149.04,149.0,2500.03]
[1751806879212,126.45422895,149.03,149.0,2500.03]
[1751806879407,18.64964886,149.01,149.0,2500.03]
[1751806879604,26.1747318,149.01,149.0,2500.03]
[1751806881129,32.88569079,149.01,149.0,2500.03]
[1751806882731,39.50489079,149.01,149.0,2500.03]
[1751806889330,39.50489079,149.01,149.0,2465.12984797]
[1751806889531,39.50489079,149.01,149.0,2462.59897768]
[1751806889735,39.50489079,149.01,149.0,2428.76786312]
[1751806889919,39.50489079,149.01,149.0,2393.99892632]
[1751806890127,39.50489079,149.01,149.0,2357.49944052]
[1751806890435,39.50489079,149.01,149.0,2225.57994621]
[1751806890645,39.50489079,149.01,149.0,2190.92418024]
[1751806891014,25.36060785,149.01,149.0,2190.92418024]
[1751806891216,59.56060785,149.01,149.0,2190.95418024]
[1751806892338,25.36060785,149.01,149.0,2190.95418024]
[1751806892540,85.58060785,149.01,149.0,2190.95418024]
[1751806893844,59.58060785,149.01,149.0,2190.95418024]
[1751806894040,67.03705713,149.01,149.0,2121.13568037]
[1751806894234,67.03705713,149.01,149.0,2083.84591601]
[1751806894546,67.03705713,149.01,149.0,1997.64805875]
[1751806894751,67.03705713,149.01,149.0,1957.86412273]
[1751806894928,67.03705713,149.01,149.0,1916.32451249]
[1751806895243,67.03705713,149.01,149.0,1880.83189524]
[1751806895740,67.03705713,149.01,149.0,1718.60142777]
[1751806895950,67.03705713,149.01,149.0,1681.26806725]
[1751806896148,67.03705713,149.01,149.0,1611.5791917]
[1751806896523,67.03705713,149.01,149.0,1576.0706627]
[1751806896724,67.03705713,149.01,149.0,1540.53600756]
[1751806897041,67.03705713,149.01,149.0,1470.41329185]
[1751806897555,87.19705713,149.01,149.0,1433.68063102]
[1751806898260,67.03705713,149.01,149.0,1433.68063102]
[1751806898653,59.58060785,149.01,149.0,1433.68063102]
[1751806898858,25.36060785,149.01,149.0,1433.68063102]
[1751806899058,59.58060785,149.01,149.0,1433.68063102]
[1751806905870,85.58060785,149.01,149.0,1433.68063102]
[1751806907472,93.01110617,149.01,149.0,1433.68063102]
[1751806909367,58.83110617,149.01,149.0,1433.68063102]
[1751806909565,93.01110617,149.01,149.0,1433.68063102]
[1751806914962,93.07110617,149.01,149.0,1433.68063102]
[1751806916754,67.07110617,149.01,149.0,1433.68063102]
[1751806916984,67.07110617,149.01,149.0,1362.58977288]